Workbook

Sheet ISO_717
A1: =Traduccion!G3 -> Acoustical Insulation: Global values calculation according ISO 717 and Draft ISO 16717
D2: =Traduccion!G10 -> Shifted value | Y2: STC (1) | Z2: STC (2) | AA2: 1
D3: 21.98333333 | Y3: 29.46153846 | Z3: 29.5
B4: =Traduccion!G4 -> Insulation | C4: =Traduccion!G5 -> Ref curve | D4: =Traduccion!G6 -> Shifted curve | E4: =Traduccion!G7 -> Negative differences | F4: Li"Cx-3150" | G4: Li"Cx-3150"-Ri | H4: 10^Li*0,1 | I4: Li "Cx-5000" | J4: Li"Cx-5000"-Ri | K4: 10^Li*0,1 | L4: Li"Ctr" | M4: Li"Ctr"-Ri | N4: 10^Li*0,1 | P4: LiLliving | Q4: 10^Li/10 | R4: 10^(Li-Ri)/10 | S4: LiTraffic | T4: 10^Li/10 | U4: 10^(Li-Ri)/10 | W4: =Traduccion!G8 -> STC Control Adjustment | X4: =Traduccion!G9 -> Transmission Loss Adjusted
A5: 50HZ | B5: 18.7 | E5: -- | F5: -40 | G5: =F5-B5 -> -58.7 | H5: =10^(G5*0.1) -> 1.348962883e-06 | I5: -41 | J5: =I5-B5 -> -59.7 | K5: =10^(J5*0.1) -> 1.071519305e-06 | L5: -25 | M5: =L5-B5 -> -43.7 | N5: =10^(M5*0.1) -> 4.265795188e-05 | P5: -41 | Q5: =10^(P5/10) -> 7.943282347e-05 | R5: =10^((P5-B5)/10) -> 1.071519305e-06 | S5: -25 | T5: =10^(S5/10) -> 0.00316227766 | U5: =10^((S5-B5)/10) -> 4.265795188e-05
A6: 63Hz | B6: 19.2 | E6: -- | F6: -36 | G6: -55.2 | H6: =10^(G6*0.1) -> 3.01995172e-06 | I6: -37 | J6: =I6-B6 -> -56.2 | K6: =10^(J6*0.1) -> 2.398832919e-06 | L6: -23 | M6: -42.2 | N6: =10^(M6*0.1) -> 6.025595861e-05 | P6: -37 | Q6: =10^(P6/10) -> 0.0001995262315 | R6: =10^((P6-B6)/10) -> 2.398832919e-06 | S6: -23 | T6: =10^(S6/10) -> 0.005011872336 | U6: =10^((S6-B6)/10) -> 6.025595861e-05
A7: 80Hz | B7: 20 | E7: -- | F7: -33 | G7: -53 | H7: 5.011872336e-06 | I7: -34 | J7: -54 | K7: 3.981071706e-06 | L7: -21 | M7: -41 | N7: 7.943282347e-05 | P7: -34 | Q7: 0.0003981071706 | R7: 3.981071706e-06 | S7: -21 | T7: 0.007943282347 | U7: 7.943282347e-05
A8: 100Hz | B8: 20.4 | C8: 33 | D8: =(C8-$D$3) -> 11.01666667 | E8: =IF(B8<D8,D8-B8,0) -> 0 | F8: -29 | G8: -49.4 | H8: =10^(G8*0.1) -> 1.148153621e-05 | I8: -30 | J8: -50.4 | K8: 9.120108394e-06 | L8: -20 | M8: -40.4 | N8: =10^(M8*0.1) -> 9.120108394e-05 | P8: -30 | Q8: 0.001 | R8: 9.120108394e-06 | S8: -20 | T8: 0.01 | U8: 9.120108394e-05
A9: 125Hz | B9: 16.3 | C9: 36 | D9: 14.01666667 | E9: 0 | F9: -26 | G9: -42.3 | H9: =10^(G9*0.1) -> 5.888436554e-05 | I9: -27 | J9: -43.3 | K9: 4.677351413e-05 | L9: -20 | M9: -36.3 | N9: =10^(M9*0.1) -> 0.0002344228815 | P9: -27 | Q9: 0.001995262315 | R9: 4.677351413e-05 | S9: -20 | T9: 0.01 | U9: 0.0002344228815 | W9: 16 | X9: =B9+W9 -> 32.3 | Y9: =IF(X9>$Y$3,0,$Y$3-X9) -> 0 | Z9: =IF(X9>$Z$3,0,$Z$3-X9) -> 0
A10: 160Hz | B10: 17.7 | C10: 39 | D10: 17.01666667 | E10: 0 | F10: -23 | G10: -40.7 | H10: 8.511380382e-05 | I10: -24 | J10: -41.7 | K10: 6.760829754e-05 | L10: -18 | M10: -35.7 | N10: 0.0002691534804 | P10: -24 | Q10: 0.003981071706 | R10: 6.760829754e-05 | S10: -18 | T10: 0.01584893192 | U10: 0.0002691534804 | W10: 13 | X10: =B10+W10 -> 30.7 | Y10: =IF(X10>$Y$3,0,$Y$3-X10) -> 0 | Z10: =IF(X10>$Z$3,0,$Z$3-X10) -> 0
A11: 200Hz | B11: 22.6 | C11: 42 | D11: 20.01666667 | E11: 0 | F11: -21 | G11: -43.6 | H11: 4.365158322e-05 | I11: -22 | J11: -44.6 | K11: 3.467368505e-05 | L11: -16 | M11: -38.6 | N11: 0.0001380384265 | P11: -22 | Q11: 0.006309573445 | R11: 3.467368505e-05 | S11: -16 | T11: 0.02511886432 | U11: 0.0001380384265 | W11: 10 | X11: 32.6 | Y11: 0 | Z11: 0
A12: 250Hz | B12: 22.4 | C12: 45 | D12: 23.01666667 | E12: 0.6166666667 | F12: -19 | G12: -41.4 | H12: 7.244359601e-05 | I12: -20 | J12: -42.4 | K12: 5.754399373e-05 | L12: -15 | M12: -37.4 | N12: 0.0001819700859 | P12: -20 | Q12: 0.01 | R12: 5.754399373e-05 | S12: -15 | T12: 0.0316227766 | U12: 0.0001819700859 | W12: 7 | X12: 29.4 | Y12: 0.06153846154 | Z12: 0.1
A13: 315Hz | B13: 22.7 | C13: 48 | D13: 26.01666667 | E13: 3.316666667 | F13: -17 | G13: -39.7 | H13: 0.0001071519305 | I13: -18 | J13: -40.7 | K13: 8.511380382e-05 | L13: -14 | M13: -36.7 | N13: 0.000213796209 | P13: -18 | Q13: 0.01584893192 | R13: 8.511380382e-05 | S13: -14 | T13: 0.03981071706 | U13: 0.000213796209 | W13: 4 | X13: 26.7 | Y13: 2.761538462 | Z13: 2.8
A14: 400Hz | B14: 24.8 | C14: 51 | D14: 29.01666667 | E14: 4.216666667 | F14: -15 | G14: -39.8 | H14: 0.0001047128548 | I14: -16 | J14: -40.8 | K14: 8.317637711e-05 | L14: -13 | M14: -37.8 | N14: 0.0001659586907 | P14: -16 | Q14: 0.02511886432 | R14: 8.317637711e-05 | S14: -13 | T14: 0.05011872336 | U14: 0.0001659586907 | W14: 1 | X14: 25.8 | Y14: 3.661538462 | Z14: 3.7
A15: 500Hz | B15: 26.6 | C15: 52 | D15: 30.01666667 | E15: 3.416666667 | F15: -13 | G15: -39.6 | H15: 0.0001096478196 | I15: -14 | J15: -40.6 | K15: 8.7096359e-05 | L15: -12 | M15: -38.6 | N15: 0.0001380384265 | P15: -14 | Q15: 0.03981071706 | R15: 8.7096359e-05 | S15: -12 | T15: 0.06309573445 | U15: 0.0001380384265 | W15: 0 | X15: 26.6 | Y15: 2.861538462 | Z15: 2.9
A16: 630Hz | B16: 28 | C16: 53 | D16: 31.01666667 | E16: 3.016666667 | F16: -12 | G16: -40 | H16: 0.0001 | I16: -13 | J16: -41 | K16: 7.943282347e-05 | L16: -11 | M16: -39 | N16: 0.0001258925412 | P16: -13 | Q16: 0.05011872336 | R16: 7.943282347e-05 | S16: -11 | T16: 0.07943282347 | U16: 0.0001258925412 | W16: -1 | X16: 27 | Y16: 2.461538462 | Z16: 2.5
A17: 800Hz | B17: 30.5 | C17: 54 | D17: 32.01666667 | E17: 1.516666667 | F17: -11 | G17: -41.5 | H17: 7.079457844e-05 | I17: -12 | J17: -42.5 | K17: 5.623413252e-05 | L17: -9 | M17: -39.5 | N17: 0.0001122018454 | P17: -12 | Q17: 0.06309573445 | R17: 5.623413252e-05 | S17: -9 | T17: 0.1258925412 | U17: 0.0001122018454 | W17: -2 | X17: 28.5 | Y17: 0.9615384615 | Z17: 1
A18: 1000Hz | B18: 31.8 | C18: 55 | D18: 33.01666667 | E18: 1.216666667 | F18: -10 | G18: -41.8 | H18: 6.60693448e-05 | I18: -11 | J18: -42.8 | K18: 5.248074602e-05 | L18: -8 | M18: -39.8 | N18: 0.0001047128548 | P18: -11 | Q18: 0.07943282347 | R18: 5.248074602e-05 | S18: -8 | T18: 0.1584893192 | U18: 0.0001047128548 | W18: -3 | X18: 28.8 | Y18: 0.6615384615 | Z18: 0.7
A19: 1250Hz | B19: 32.5 | C19: 56 | D19: 34.01666667 | E19: 1.516666667 | F19: -9 | G19: -41.5 | H19: 7.079457844e-05 | I19: -10 | J19: -42.5 | K19: 5.623413252e-05 | L19: -9 | M19: -41.5 | N19: 7.079457844e-05 | P19: -10 | Q19: 0.1 | R19: 5.623413252e-05 | S19: -9 | T19: 0.1258925412 | U19: 7.079457844e-05 | W19: -4 | X19: 28.5 | Y19: 0.9615384615 | Z19: 1
A20: 1600Hz | B20: 33.4 | C20: 56 | D20: 34.01666667 | E20: 0.6166666667 | F20: -9 | G20: -42.4 | H20: 5.754399373e-05 | I20: -10 | J20: -43.4 | K20: 4.570881896e-05 | L20: -10 | M20: -43.4 | N20: 4.570881896e-05 | P20: -10 | Q20: 0.1 | R20: 4.570881896e-05 | S20: -10 | T20: 0.1 | U20: 4.570881896e-05 | W20: -4 | X20: 29.4 | Y20: 0.06153846154 | Z20: 0.1
A21: 2000Hz | B21: 33 | C21: 56 | D21: 34.01666667 | E21: 1.016666667 | F21: -9 | G21: -42 | H21: 6.309573445e-05 | I21: -10 | J21: -43 | K21: 5.011872336e-05 | L21: -11 | M21: -44 | N21: 3.981071706e-05 | P21: -10 | Q21: 0.1 | R21: 5.011872336e-05 | S21: -11 | T21: 0.07943282347 | U21: 3.981071706e-05 | W21: -4 | X21: 29 | Y21: 0.4615384615 | Z21: 0.5
A22: 2500Hz | B22: 31 | C22: 56 | D22: 34.01666667 | E22: 3.016666667 | F22: -9 | G22: -40 | H22: 0.0001 | I22: -10 | J22: -41 | K22: 7.943282347e-05 | L22: -13 | M22: -44 | N22: 3.981071706e-05 | P22: -10 | Q22: 0.1 | R22: 7.943282347e-05 | S22: -13 | T22: 0.05011872336 | U22: 3.981071706e-05 | W22: -4 | X22: 27 | Y22: 2.461538462 | Z22: 2.5
A23: 3150Hz | B23: 25.5 | C23: 56 | D23: 34.01666667 | E23: 8.516666667 | F23: -9 | G23: -34.5 | H23: 0.0003548133892 | I23: -10 | J23: -35.5 | K23: 0.0002818382931 | L23: -15 | M23: -40.5 | N23: 8.912509381e-05 | P23: -10 | Q23: 0.1 | R23: 0.0002818382931 | S23: -15 | T23: 0.0316227766 | U23: 8.912509381e-05 | W23: -4 | X23: 21.5 | Y23: 7.961538462 | Z23: 8
A24: 4000Hz | B24: 26.8 | E24: -- | F24: -9 | G24: -35.8 | H24: 0.0002630267992 | I24: -10 | J24: -36.8 | K24: 0.0002089296131 | L24: -16 | M24: -42.8 | N24: 5.248074602e-05 | W24: -4 | X24: 22.8 | Y24: 6.661538462 | Z24: 6.7
A25: 5000Hz | B25: 29.2 | E25: -- | F25: -9 | G25: -38.2 | H25: 0.0001513561248 | I25: -10 | J25: -39.2 | K25: 0.0001202264435 | L25: -18 | M25: -47.2 | N25: 1.905460718e-05
E26: =SUM(E8:E23) -> 32 | G26: S 100-3150 | H26: =-10*LOG(SUM(H8:H23)) -> 28.30855061 | J26: S 100-5000 | K26: =-10*LOG(SUM(K8:K25)) -> 28.23404474 | M26: S 100-3150 | N26: =-10*LOG(SUM(N8:N23)) -> 26.85998622 | P26: S 50-3150 | Q26: =SUM(Q5:Q23) -> 0.7973887683 | R26: =SUM(R5:R23) -> 0.001180038056 | S26: S 50-3150 | T26: =SUM(T5:T23) -> 1.012614729 | U26: =SUM(U5:U23) -> 0.002242983185 | X26: S | Y26: =SUM(Y9:Y24) -> 32
A27: Rw(C;Ctr)= | B27: =CONCATENATE(ROUND(E30,0),"(",ROUND(H30,0),";",ROUND(N30,0),")") -> 30(-2;-3) | G27: S 50-3150 | H27: =IF(OR(B5=0,B6=0,B7=0),"--",-10*LOG(SUM(H5:H23))) -> 28.28103986 | J27: S 50-5000 | K27: =IF(OR(B5=0,B6=0,B7=0),"--",-10*LOG(SUM(K5:K25))) -> 28.21254898 | M27: S 50-3150 | N27: =IF(OR(B5=0,B6=0,B7=0),"--",-10*LOG(SUM(N5:N23))) -> 26.49173982 | P27: S 100-3150 | Q27: =SUM(Q8:Q23) -> 0.796711702 | R27: =SUM(R8:R23) -> 0.001172586632 | S27: S 100-3150 | T27: =SUM(T8:T23) -> 0.9964972962 | U27: =SUM(U8:U23) -> 0.002060636451 | X27: Max. | Z27: =MAX(Z9:Z24) -> 8
A28: C50-3150 | B28: =H31 -> -1.718960135 | M28: S 100-5000 | N28: =-10*LOG(SUM(N8:N25)) -> 26.71177804
A29: C100-5000 | B29: =K30 -> -1.765955263 | M29: S 50-5000 | N29: =IF(OR(B5=0,B6=0,B7=0),"--",-10*LOG(SUM(N5:N25))) -> 26.35539336
A30: C50-5000 | B30: =K31 -> -1.787451024 | D30: Rw | E30: =INT(D15) -> 30 | G30: C | H30: =H26-E30 -> -1.691449388 | J30: C100-5000 | K30: =K26-E30 -> -1.765955263 | M30: Ctr | N30: =N26-E30 -> -3.140013779 | Q30: Rliving50,HZ | R30: =10*LOG(Q26/R26) -> 28.29774101 | T30: Rtraffic,50Hz | U30: =10*LOG(T26/U26) -> 26.54618222 | X30: STC | Y30: =MIN(Y3:Z3) -> 29.46153846
A31: Ctr50-3150 | B31: =N31 -> -3.508260178 | G31: C50-3150 | H31: =IF(H27="--","--",H27-E30) -> -1.718960135 | J31: C50-5000 | K31: =IF(K27="--","--",K27-E30) -> -1.787451024 | M31: Ctr50-3150 | N31: =IF(N27="--","--",N27-E30) -> -3.508260178 | Q31: Rliving,100Hz | R31: =10*LOG(Q27/R27) -> 28.32156257 | T31: Rtrafic,100Hz | U31: =10*LOG(T27/U27) -> 26.84474747
A32: Ctr100-5000 | B32: =N32 -> -3.28822196 | M32: Ctr100-5000 | N32: =N28-E30 -> -3.28822196
A33: Ctr50-5000 | B33: =N33 -> -3.644606636 | M33: Ctr50-5000 | N33: =IF(N29="--","--",N29-E30) -> -3.644606636
A35: Rliving50,HZ | B35: =R30 -> 28.29774101
A36: Rliving,100Hz | B36: =R31 -> 28.32156257
A37: Rtraffic,50Hz | B37: =U30 -> 26.54618222
A38: Rtrafic,100Hz | B38: =U31 -> 26.84474747
A40: STC | B40: =Y30 -> 29.46153846
A41: © Josep Sole

Sheet Traduccion (hidden)
G2: Selección
A3: 1 | B3: Acoustical Insulation: Global values calculation according ISO 717 and Draft ISO 16717 | C3: Aislamiento acústico: Calculo de valores globales según ISO 717 y Borrador ISO 16717 | F3: 1 | G3: =VLOOKUP(F3,$A$3:$C$10,ISO_717!$AA$2+1) -> Acoustical Insulation: Global values calculation according ISO 717 and Draft ISO 16717
A4: 2 | B4: Insulation | C4: Aislamiento | F4: 2 | G4: =VLOOKUP(F4,$A$3:$C$10,ISO_717!$AA$2+1) -> Insulation
A5: 3 | B5: Ref curve | C5: Curva referencia | F5: 3 | G5: =VLOOKUP(F5,$A$3:$C$10,ISO_717!$AA$2+1) -> Ref curve
A6: 4 | B6: Shifted curve | C6: Curva ajustada | F6: 4 | G6: =VLOOKUP(F6,$A$3:$C$10,ISO_717!$AA$2+1) -> Shifted curve
A7: 5 | B7: Negative differences | C7: Diferencias negativas | F7: 5 | G7: =VLOOKUP(F7,$A$3:$C$10,ISO_717!$AA$2+1) -> Negative differences
A8: 6 | B8: STC Control Adjustment | C8: STC (control del ajuste) | F8: 6 | G8: =VLOOKUP(F8,$A$3:$C$10,ISO_717!$AA$2+1) -> STC Control Adjustment
A9: 7 | B9: Transmission Loss Adjusted | C9: Transmisión acústica ajustada | F9: 7 | G9: =VLOOKUP(F9,$A$3:$C$10,ISO_717!$AA$2+1) -> Transmission Loss Adjusted
A10: 8 | B10: Shifted value | C10: Valor de ajuste | F10: 8 | G10: =VLOOKUP(F10,$A$3:$C$10,ISO_717!$AA$2+1) -> Shifted value

Sheet Instructions
